{"text_format":"1","workbook":"xlsx","n_sheets":4,"sheets":["Eingabe der Testdaten","Test auf Normalverteilung","Wahrscheinlichkeitsnetz","StS_Steuerung"],"not_rendered":{"charts":2,"images":1,"macros":1,"external_links":1,"defined_names":20,"comments":0,"pivot_tables":0},"unopened":[{"sheet":"Wahrscheinlichkeitsnetz","index":2,"reason":"not_a_worksheet"},{"sheet":"StS_Steuerung","index":3,"reason":"part_missing"}],"bounds":{"document_bytes":16777216,"sheet_cells":100000,"rows_first":2000,"rows_last":500,"rows_between":2000,"halvings":0,"cell_chars":16384,"cell_head_chars":4096},"cells_cut":0,"cells_raw":0,"read":"whole","date_system":"1900"}

{"sheet":"Eingabe der Testdaten","index":0,"n_rows":45,"n_cols":5,"rows_kept":45,"cut":false,"hidden":false,"merged":[[0,0,0,4]]}
[{"$f":"'Test auf Normalverteilung'!A1","v":"lizensiert ©2020: Testversion und DEMO\nDr. Schömer | QMBalance\nAltenkesseler Str. 17\n66115 Saarbrücken\ne-mail: schoemer@qmbalance.com"}]
["Test geordneter Stichproben im Wahrscheinlichkeitsnetz\n © Dr. Stefan Schömer"]
[null,"Schätzung der Kennwerte :"]
[null,"Anzahl Werte:",{"$f":"Anzahl","v":"<Anzahl Werte>"}]
[null,"Mittelwert:",{"$f":"Mittel","v":"<Mittelwert>"}]
[null,"Standardabweichung:",{"$f":"StAbw","v":"<Standardabweichung>"}]
["© Dr. Stefan Schömer, 2000"]
["ß Eingabe ß","Arbeitsbereich\nsortierte Werte","gemessene\nStandard-normalvariable","erwartete\nVerteilungs-\nfunktion","erwartete\nStandard-normalvariable"]
[{"$f":"ROUND(RAND()*10+95,0)","v":101},null,{"$f":"'Test auf Normalverteilung'!B9","v":"u [1]"},{"$f":"'Test auf Normalverteilung'!C9","v":""},{"$f":"'Test auf Normalverteilung'!D9","v":""}]
[102,null,{"$f":"'Test auf Normalverteilung'!B10","v":"u [2]"},{"$f":"'Test auf Normalverteilung'!C10","v":""},{"$f":"'Test auf Normalverteilung'!D10","v":""}]
[98,null,{"$f":"'Test auf Normalverteilung'!B11","v":"u [3]"},{"$f":"'Test auf Normalverteilung'!C11","v":""},{"$f":"'Test auf Normalverteilung'!D11","v":""}]
[104,null,{"$f":"'Test auf Normalverteilung'!B12","v":"u [4]"},{"$f":"'Test auf Normalverteilung'!C12","v":""},{"$f":"'Test auf Normalverteilung'!D12","v":""}]
[96,null,{"$f":"'Test auf Normalverteilung'!B13","v":"u [5]"},{"$f":"'Test auf Normalverteilung'!C13","v":""},{"$f":"'Test auf Normalverteilung'!D13","v":""}]
[101,null,{"$f":"'Test auf Normalverteilung'!B14","v":"u [6]"},{"$f":"'Test auf Normalverteilung'!C14","v":""},{"$f":"'Test auf Normalverteilung'!D14","v":""}]
[99,null,{"$f":"'Test auf Normalverteilung'!B15","v":"u [7]"},{"$f":"'Test auf Normalverteilung'!C15","v":""},{"$f":"'Test auf Normalverteilung'!D15","v":""}]
[98,null,{"$f":"'Test auf Normalverteilung'!B16","v":"u [8]"},{"$f":"'Test auf Normalverteilung'!C16","v":""},{"$f":"'Test auf Normalverteilung'!D16","v":""}]
[96,null,{"$f":"'Test auf Normalverteilung'!B17","v":"u [9]"},{"$f":"'Test auf Normalverteilung'!C17","v":""},{"$f":"'Test auf Normalverteilung'!D17","v":""}]
[99,null,{"$f":"'Test auf Normalverteilung'!B18","v":"u [10]"},{"$f":"'Test auf Normalverteilung'!C18","v":""},{"$f":"'Test auf Normalverteilung'!D18","v":""}]
[null,null,{"$f":"'Test auf Normalverteilung'!B19","v":"u [11]"},{"$f":"'Test auf Normalverteilung'!C19","v":""},{"$f":"'Test auf Normalverteilung'!D19","v":""}]
[null,null,{"$f":"'Test auf Normalverteilung'!B20","v":"u [12]"},{"$f":"'Test auf Normalverteilung'!C20","v":""},{"$f":"'Test auf Normalverteilung'!D20","v":""}]
[null,null,{"$f":"'Test auf Normalverteilung'!B21","v":"u [13]"},{"$f":"'Test auf Normalverteilung'!C21","v":""},{"$f":"'Test auf Normalverteilung'!D21","v":""}]
[null,null,{"$f":"'Test auf Normalverteilung'!B22","v":"u [14]"},{"$f":"'Test auf Normalverteilung'!C22","v":""},{"$f":"'Test auf Normalverteilung'!D22","v":""}]
[null,null,{"$f":"'Test auf Normalverteilung'!B23","v":"u [15]"},{"$f":"'Test auf Normalverteilung'!C23","v":""},{"$f":"'Test auf Normalverteilung'!D23","v":""}]
[null,null,{"$f":"'Test auf Normalverteilung'!B24","v":"u [16]"},{"$f":"'Test auf Normalverteilung'!C24","v":""},{"$f":"'Test auf Normalverteilung'!D24","v":""}]
[null,null,{"$f":"'Test auf Normalverteilung'!B25","v":"u [17]"},{"$f":"'Test auf Normalverteilung'!C25","v":""},{"$f":"'Test auf Normalverteilung'!D25","v":""}]
[null,null,{"$f":"'Test auf Normalverteilung'!B26","v":"u [18]"},{"$f":"'Test auf Normalverteilung'!C26","v":""},{"$f":"'Test auf Normalverteilung'!D26","v":""}]
[null,null,{"$f":"'Test auf Normalverteilung'!B27","v":"u [19]"},{"$f":"'Test auf Normalverteilung'!C27","v":""},{"$f":"'Test auf Normalverteilung'!D27","v":""}]
[null,null,{"$f":"'Test auf Normalverteilung'!B28","v":"u [20]"},{"$f":"'Test auf Normalverteilung'!C28","v":""},{"$f":"'Test auf Normalverteilung'!D28","v":""}]
[null,null,{"$f":"'Test auf Normalverteilung'!B29","v":"u [21]"},{"$f":"'Test auf Normalverteilung'!C29","v":""},{"$f":"'Test auf Normalverteilung'!D29","v":""}]
[null,null,{"$f":"'Test auf Normalverteilung'!B30","v":"u [22]"},{"$f":"'Test auf Normalverteilung'!C30","v":""},{"$f":"'Test auf Normalverteilung'!D30","v":""}]
[null,null,{"$f":"'Test auf Normalverteilung'!B31","v":"u [23]"},{"$f":"'Test auf Normalverteilung'!C31","v":""},{"$f":"'Test auf Normalverteilung'!D31","v":""}]
[null,null,{"$f":"'Test auf Normalverteilung'!B32","v":"u [24]"},{"$f":"'Test auf Normalverteilung'!C32","v":""},{"$f":"'Test auf Normalverteilung'!D32","v":""}]
[null,null,{"$f":"'Test auf Normalverteilung'!B33","v":"u [25]"},{"$f":"'Test auf Normalverteilung'!C33","v":""},{"$f":"'Test auf Normalverteilung'!D33","v":""}]
[null,null,{"$f":"'Test auf Normalverteilung'!B34","v":"u [26]"},{"$f":"'Test auf Normalverteilung'!C34","v":""},{"$f":"'Test auf Normalverteilung'!D34","v":""}]
[null,null,{"$f":"'Test auf Normalverteilung'!B35","v":"u [27]"},{"$f":"'Test auf Normalverteilung'!C35","v":""},{"$f":"'Test auf Normalverteilung'!D35","v":""}]
[null,null,{"$f":"'Test auf Normalverteilung'!B36","v":"u [28]"},{"$f":"'Test auf Normalverteilung'!C36","v":""},{"$f":"'Test auf Normalverteilung'!D36","v":""}]
[null,null,{"$f":"'Test auf Normalverteilung'!B37","v":"u [29]"},{"$f":"'Test auf Normalverteilung'!C37","v":""},{"$f":"'Test auf Normalverteilung'!D37","v":""}]
[null,null,{"$f":"'Test auf Normalverteilung'!B38","v":"u [30]"},{"$f":"'Test auf Normalverteilung'!C38","v":""},{"$f":"'Test auf Normalverteilung'!D38","v":""}]
[null,null,{"$f":"'Test auf Normalverteilung'!B39","v":"u [31]"},{"$f":"'Test auf Normalverteilung'!C39","v":""},{"$f":"'Test auf Normalverteilung'!D39","v":""}]
[null,null,{"$f":"'Test auf Normalverteilung'!B40","v":"u [32]"},{"$f":"'Test auf Normalverteilung'!C40","v":""},{"$f":"'Test auf Normalverteilung'!D40","v":""}]
[null,null,{"$f":"'Test auf Normalverteilung'!B41","v":"u [33]"},{"$f":"'Test auf Normalverteilung'!C41","v":""},{"$f":"'Test auf Normalverteilung'!D41","v":""}]
[null,null,{"$f":"'Test auf Normalverteilung'!B42","v":"u [34]"},{"$f":"'Test auf Normalverteilung'!C42","v":""},{"$f":"'Test auf Normalverteilung'!D42","v":""}]
[null,null,{"$f":"'Test auf Normalverteilung'!B43","v":"u [35]"},{"$f":"'Test auf Normalverteilung'!C43","v":""},{"$f":"'Test auf Normalverteilung'!D43","v":""}]
[null,null,{"$f":"'Test auf Normalverteilung'!B44","v":"u [36]"},{"$f":"'Test auf Normalverteilung'!C44","v":""},{"$f":"'Test auf Normalverteilung'!D44","v":""}]
[null,null,{"$f":"'Test auf Normalverteilung'!B45","v":"u [37]"},{"$f":"'Test auf Normalverteilung'!C45","v":""},{"$f":"'Test auf Normalverteilung'!D45","v":""}]

{"sheet":"Test auf Normalverteilung","index":1,"n_rows":45,"n_cols":4,"rows_kept":45,"cut":false,"hidden":true,"merged":[]}
[{"$f":"\"lizensiert ©2020: Testversion und DEMO\"&CHAR(10)&\"Dr. Schömer | QMBalance\"&CHAR(10)&\"Altenkesseler Str. 17\"&CHAR(10)&\"66115 Saarbrücken\"&CHAR(10)&\"e-mail: schoemer@qmbalance.com\"","v":"lizensiert ©2020: Testversion und DEMO\nDr. Schömer | QMBalance\nAltenkesseler Str. 17\n66115 Saarbrücken\ne-mail: schoemer@qmbalance.com"}]
["Test auf Normalverteilung im Wahrscheinlichkeitsnetz"]
["Schätzung der Kennwerte :"]
[{"$f":"'Eingabe der Testdaten'!$B$4:$B$6","v":"Anzahl Werte:"},{"$f":"IF(COUNT($A$9:$A$45)>1,COUNT($A$9:$A$45),\"<Anzahl Werte>\")","v":"<Anzahl Werte>"}]
["Mittelwert:",{"$f":"IF(ISNUMBER($B$4),AVERAGE($A$9:$A$45),\"<Mittelwert>\")","v":"<Mittelwert>"}]
["Standardabweichung:",{"$f":"IF(ISNUMBER($B$4),STDEV($A$9:$A$45),\"<Standardabweichung>\")","v":"<Standardabweichung>"}]
["zu prüfende Messwerte","Standard-normalvariable","erwartete\nVerteilungs-funktion","erwartete\nStandard-normalvariable"]
["sortieren und neu berechnen (F9) !!"]
[{"$f":"IF(ISNUMBER('Eingabe der Testdaten'!$B9),'Eingabe der Testdaten'!$B9,\"\")","v":""},{"$f":"IF(ISNUMBER(Sortierte_Testwerte),(Sortierte_Testwerte-Mittel)/StAbw, \"u [\"&TEXT(ROW($A$1:$A$37),0)&\"]\")","v":"u [1]"},{"$f":"IF(ISNUMBER(Sortierte_Testwerte),HLOOKUP(Anzahl,[1]!ErwartungswerteGxn,ROW($A$2:$A$37)),\"\")","v":""},{"$f":"IF(ISNUMBER(Sortierte_Testwerte),ROUND(NORMINV(ErwartungswertGx,0,1),2),\"\")","v":""}]
[{"$f":"IF(ISNUMBER('Eingabe der Testdaten'!$B10),'Eingabe der Testdaten'!$B10,\"\")","v":""},"u [2]","",""]
[{"$f":"IF(ISNUMBER('Eingabe der Testdaten'!$B11),'Eingabe der Testdaten'!$B11,\"\")","v":""},"u [3]","",""]
[{"$f":"IF(ISNUMBER('Eingabe der Testdaten'!$B12),'Eingabe der Testdaten'!$B12,\"\")","v":""},"u [4]","",""]
[{"$f":"IF(ISNUMBER('Eingabe der Testdaten'!$B13),'Eingabe der Testdaten'!$B13,\"\")","v":""},"u [5]","",""]
[{"$f":"IF(ISNUMBER('Eingabe der Testdaten'!$B14),'Eingabe der Testdaten'!$B14,\"\")","v":""},"u [6]","",""]
[{"$f":"IF(ISNUMBER('Eingabe der Testdaten'!$B15),'Eingabe der Testdaten'!$B15,\"\")","v":""},"u [7]","",""]
[{"$f":"IF(ISNUMBER('Eingabe der Testdaten'!$B16),'Eingabe der Testdaten'!$B16,\"\")","v":""},"u [8]","",""]
[{"$f":"IF(ISNUMBER('Eingabe der Testdaten'!$B17),'Eingabe der Testdaten'!$B17,\"\")","v":""},"u [9]","",""]
[{"$f":"IF(ISNUMBER('Eingabe der Testdaten'!$B18),'Eingabe der Testdaten'!$B18,\"\")","v":""},"u [10]","",""]
[{"$f":"IF(ISNUMBER('Eingabe der Testdaten'!$B19),'Eingabe der Testdaten'!$B19,\"\")","v":""},"u [11]","",""]
[{"$f":"IF(ISNUMBER('Eingabe der Testdaten'!$B20),'Eingabe der Testdaten'!$B20,\"\")","v":""},"u [12]","",""]
[{"$f":"IF(ISNUMBER('Eingabe der Testdaten'!$B21),'Eingabe der Testdaten'!$B21,\"\")","v":""},"u [13]","",""]
[{"$f":"IF(ISNUMBER('Eingabe der Testdaten'!$B22),'Eingabe der Testdaten'!$B22,\"\")","v":""},"u [14]","",""]
[{"$f":"IF(ISNUMBER('Eingabe der Testdaten'!$B23),'Eingabe der Testdaten'!$B23,\"\")","v":""},"u [15]","",""]
[{"$f":"IF(ISNUMBER('Eingabe der Testdaten'!$B24),'Eingabe der Testdaten'!$B24,\"\")","v":""},"u [16]","",""]
[{"$f":"IF(ISNUMBER('Eingabe der Testdaten'!$B25),'Eingabe der Testdaten'!$B25,\"\")","v":""},"u [17]","",""]
[{"$f":"IF(ISNUMBER('Eingabe der Testdaten'!$B26),'Eingabe der Testdaten'!$B26,\"\")","v":""},"u [18]","",""]
[{"$f":"IF(ISNUMBER('Eingabe der Testdaten'!$B27),'Eingabe der Testdaten'!$B27,\"\")","v":""},"u [19]","",""]
[{"$f":"IF(ISNUMBER('Eingabe der Testdaten'!$B28),'Eingabe der Testdaten'!$B28,\"\")","v":""},"u [20]","",""]
[{"$f":"IF(ISNUMBER('Eingabe der Testdaten'!$B29),'Eingabe der Testdaten'!$B29,\"\")","v":""},"u [21]","",""]
[{"$f":"IF(ISNUMBER('Eingabe der Testdaten'!$B30),'Eingabe der Testdaten'!$B30,\"\")","v":""},"u [22]","",""]
[{"$f":"IF(ISNUMBER('Eingabe der Testdaten'!$B31),'Eingabe der Testdaten'!$B31,\"\")","v":""},"u [23]","",""]
[{"$f":"IF(ISNUMBER('Eingabe der Testdaten'!$B32),'Eingabe der Testdaten'!$B32,\"\")","v":""},"u [24]","",""]
[{"$f":"IF(ISNUMBER('Eingabe der Testdaten'!$B33),'Eingabe der Testdaten'!$B33,\"\")","v":""},"u [25]","",""]
[{"$f":"IF(ISNUMBER('Eingabe der Testdaten'!$B34),'Eingabe der Testdaten'!$B34,\"\")","v":""},"u [26]","",""]
[{"$f":"IF(ISNUMBER('Eingabe der Testdaten'!$B35),'Eingabe der Testdaten'!$B35,\"\")","v":""},"u [27]","",""]
[{"$f":"IF(ISNUMBER('Eingabe der Testdaten'!$B36),'Eingabe der Testdaten'!$B36,\"\")","v":""},"u [28]","",""]
[{"$f":"IF(ISNUMBER('Eingabe der Testdaten'!$B37),'Eingabe der Testdaten'!$B37,\"\")","v":""},"u [29]","",""]
[{"$f":"IF(ISNUMBER('Eingabe der Testdaten'!$B38),'Eingabe der Testdaten'!$B38,\"\")","v":""},"u [30]","",""]
[{"$f":"IF(ISNUMBER('Eingabe der Testdaten'!$B39),'Eingabe der Testdaten'!$B39,\"\")","v":""},"u [31]","",""]
[{"$f":"IF(ISNUMBER('Eingabe der Testdaten'!$B40),'Eingabe der Testdaten'!$B40,\"\")","v":""},"u [32]","",""]
[{"$f":"IF(ISNUMBER('Eingabe der Testdaten'!$B41),'Eingabe der Testdaten'!$B41,\"\")","v":""},"u [33]","",""]
[{"$f":"IF(ISNUMBER('Eingabe der Testdaten'!$B42),'Eingabe der Testdaten'!$B42,\"\")","v":""},"u [34]","",""]
[{"$f":"IF(ISNUMBER('Eingabe der Testdaten'!$B43),'Eingabe der Testdaten'!$B43,\"\")","v":""},"u [35]","",""]
[{"$f":"IF(ISNUMBER('Eingabe der Testdaten'!$B44),'Eingabe der Testdaten'!$B44,\"\")","v":""},"u [36]","",""]
[{"$f":"IF(ISNUMBER('Eingabe der Testdaten'!$B45),'Eingabe der Testdaten'!$B45,\"\")","v":""},"u [37]","",""]